[Event "Late-Titled-Tuesday-Blitz-May-07-2024"]
[Site "Chess.com"]
[Date "2024.05.07"]
[Round "1"]
[White "rdarruda"]
[Black "mishanick"]
[Result "0-1"]
[WhiteElo "2550"]
[BlackElo "3043"]
[TimeControl "180+1"]
[EndTime "14:06:44 PDT"]
[Termination "mishanick won by resignation"]

1. Nf3 {[%clk 0:03:00.9]} 1... d5 {[%clk 0:02:59.8]} 2. d4 {[%clk 0:03:00.7]}
2... Nf6 {[%clk 0:02:59.4]} 3. c4 {[%clk 0:03:00.6]} 3... e6 {[%clk 0:02:59.6]}
4. e3 {[%clk 0:03:00.3]} 4... Be7 {[%clk 0:02:56.6]} 5. Nc3 {[%clk 0:03:00.2]}
5... O-O {[%clk 0:02:57.3]} 6. Bd3 {[%clk 0:02:59.5]} 6... dxc4 {[%clk
0:02:53.3]} 7. Bxc4 {[%clk 0:02:59]} 7... c5 {[%clk 0:02:54]} 8. O-O {[%clk
0:02:57.2]} 8... Nc6 {[%clk 0:02:47.6]} 9. dxc5 {[%clk 0:02:56.7]} 9... Bxc5
{[%clk 0:02:47.7]} 10. Qxd8 {[%clk 0:02:56]} 10... Rxd8 {[%clk 0:02:47.5]} 11.
a3 {[%clk 0:02:56.6]} 11... a6 {[%clk 0:02:45.5]} 12. b4 {[%clk 0:02:56.5]}
12... Be7 {[%clk 0:02:46.2]} 13. Bb2 {[%clk 0:02:56.5]} 13... Bd7 {[%clk
0:02:46.6]} 14. Rfd1 {[%clk 0:02:55.4]} 14... Rac8 {[%clk 0:02:46.4]} 15. Bb3
{[%clk 0:02:52.6]} 15... Be8 {[%clk 0:02:43.7]} 16. Rxd8 {[%clk 0:02:50.8]}
16... Rxd8 {[%clk 0:02:44.6]} 17. Rd1 {[%clk 0:02:50.3]} 17... Rc8 {[%clk
0:02:44.8]} 18. h3 {[%clk 0:02:48]} 18... a5 {[%clk 0:02:41]} 19. b5 {[%clk
0:02:41.3]} 19... Nb8 {[%clk 0:02:41.1]} 20. a4 {[%clk 0:02:41.2]} 20... Nbd7
{[%clk 0:02:40.4]} 21. Rc1 {[%clk 0:02:32.7]} 21... Nb6 {[%clk 0:02:33.9]} 22.
Ne2 {[%clk 0:02:25.3]} 22... Rxc1+ {[%clk 0:02:32.5]} 23. Bxc1 {[%clk
0:02:26.2]} 23... Nfd7 {[%clk 0:02:32.6]} 24. Bd2 {[%clk 0:02:17.6]} 24... Nc5
{[%clk 0:02:30.3]} 25. Bxa5 {[%clk 0:02:10.2]} 25... Nbxa4 {[%clk 0:02:29.7]}
26. Bxa4 {[%clk 0:02:00.8]} 26... Nxa4 {[%clk 0:02:30.6]} 27. Ned4 {[%clk
0:01:50]} 27... Bd6 {[%clk 0:02:20.5]} 28. Nd2 {[%clk 0:01:31.7]} 28... e5
{[%clk 0:02:10.6]} 29. Nf5 {[%clk 0:01:29.9]} 29... Bb8 {[%clk 0:02:10.5]} 30.
b6 {[%clk 0:01:20.7]} 30... Bd7 {[%clk 0:02:02.8]} 31. Ne7+ {[%clk 0:01:16.8]}
31... Kf8 {[%clk 0:01:59.6]} 32. Nd5 {[%clk 0:01:17.3]} 32... Bc6 {[%clk
0:01:52.9]} 33. Nb4 {[%clk 0:01:13.4]} 33... Bb5 {[%clk 0:01:45]} 34. Nd5 {[%clk
0:01:10.5]} 34... Bd3 {[%clk 0:01:32.4]} 35. Nc3 {[%clk 0:00:53.7]} 35... Nxc3
{[%clk 0:01:27.4]} 36. Bxc3 {[%clk 0:00:54.6]} 36... Ke7 {[%clk 0:01:27.3]} 37.
Nb3 {[%clk 0:00:49.2]} 37... Kd6 {[%clk 0:01:22.5]} 38. Na5 {[%clk 0:00:46.9]}
38... Ba6 {[%clk 0:01:22.1]} 39. Bb4+ {[%clk 0:00:46.5]} 39... Kd5 {[%clk
0:01:21.5]} 40. f3 {[%clk 0:00:43.2]} 40... e4 {[%clk 0:01:22]} 41. f4 {[%clk
0:00:42.7]} 41... Bd6 {[%clk 0:01:14.3]} 42. Bxd6 {[%clk 0:00:30.9]} 42... Kxd6
{[%clk 0:01:15.2]} 43. Nb3 {[%clk 0:00:23.2]} 43... Kc6 {[%clk 0:01:14.6]} 44.
Nd4+ {[%clk 0:00:23.1]} 44... Kxb6 {[%clk 0:01:14.6]} 45. Nf5 {[%clk 0:00:23.7]}
45... g6 {[%clk 0:00:58]} 46. Nd6 {[%clk 0:00:23.3]} 46... f5 {[%clk 0:00:58.7]}
47. Nf7 {[%clk 0:00:21.2]} 47... Kc5 {[%clk 0:00:58.5]} 48. Ng5 {[%clk
0:00:20.9]} 48... b5 {[%clk 0:00:58.2]} 49. Nxh7 {[%clk 0:00:20.5]} 49... b4
{[%clk 0:00:58.4]} 50. Kf2 {[%clk 0:00:21.2]} 50... b3 {[%clk 0:00:58.4]} 0-1

[Event "Late-Titled-Tuesday-Blitz-May-07-2024"]
[Site "Chess.com"]
[Date "2024.05.07"]
[Round "1"]
[White "yobdc"]
[Black "KaydenTroffChess"]
[Result "0-1"]
[WhiteElo "2505"]
[BlackElo "2858"]
[TimeControl "180+1"]
[EndTime "14:06:45 PDT"]
[Termination "KaydenTroffChess won by resignation"]

1. Nf3 {[%clk 0:03:00.9]} 1... Nf6 {[%clk 0:02:55.3]} 2. g3 {[%clk 0:03:01.1]}
2... g6 {[%clk 0:02:54.6]} 3. Bg2 {[%clk 0:03:02]} 3... Bg7 {[%clk 0:02:55]} 4.
O-O {[%clk 0:03:02.6]} 4... O-O {[%clk 0:02:54.5]} 5. d4 {[%clk 0:03:03.2]} 5...
d5 {[%clk 0:02:53.8]} 6. b3 {[%clk 0:03:01.4]} 6... c5 {[%clk 0:02:53.2]} 7. Bb2
{[%clk 0:03:00.4]} 7... Ne4 {[%clk 0:02:53.4]} 8. e3 {[%clk 0:03:00]} 8... Nc6
{[%clk 0:02:53.1]} 9. Nbd2 {[%clk 0:02:59.9]} 9... Qa5 {[%clk 0:02:51.3]} 10. c4
{[%clk 0:02:57.9]} 10... Nxd2 {[%clk 0:02:49.8]} 11. Nxd2 {[%clk 0:02:46.8]}
11... dxc4 {[%clk 0:02:09.7]} 12. Nxc4 {[%clk 0:02:46.3]} 12... Qc7 {[%clk
0:02:00.4]} 13. dxc5 {[%clk 0:02:38.7]} 13... Bxb2 {[%clk 0:02:00.4]} 14. Nxb2
{[%clk 0:02:39.6]} 14... Rd8 {[%clk 0:01:59.8]} 15. Qc2 {[%clk 0:02:34.9]} 15...
Bf5 {[%clk 0:01:58]} 16. Qc3 {[%clk 0:02:31.6]} 16... Rac8 {[%clk 0:01:44.1]}
17. Rfd1 {[%clk 0:02:30.9]} 17... Ne5 {[%clk 0:01:36.7]} 18. Rxd8+ {[%clk
0:02:22.6]} 18... Rxd8 {[%clk 0:01:36.4]} 19. Rd1 {[%clk 0:02:21.5]} 19... Rc8
{[%clk 0:01:30.4]} 20. b4 {[%clk 0:02:16]} 20... Bg4 {[%clk 0:01:30.2]} 21. Rc1
{[%clk 0:01:57.4]} 21... Rd8 {[%clk 0:01:16.5]} 22. h3 {[%clk 0:01:45.8]} 22...
Bf3 {[%clk 0:01:12.6]} 23. b5 {[%clk 0:01:06]} 23... a6 {[%clk 0:00:50.8]} 24.
a4 {[%clk 0:00:39.5]} 24... axb5 {[%clk 0:00:50.1]} 25. axb5 {[%clk 0:00:40.4]}
25... f6 {[%clk 0:00:47]} 26. Nc4 {[%clk 0:00:29.4]} 26... Bxg2 {[%clk
0:00:41.6]} 27. Kxg2 {[%clk 0:00:13.1]} 27... Nd3 {[%clk 0:00:38.3]} 28. Rc2
{[%clk 0:00:07.2]} 28... Qxc5 {[%clk 0:00:36.1]} 29. Nd2 {[%clk 0:00:02.7]}
29... Qxb5 {[%clk 0:00:27.4]} 30. Rb2 {[%clk 0:00:03.1]} 30... Nxb2 {[%clk
0:00:25.9]} 0-1

[Event "Late-Titled-Tuesday-Blitz-May-07-2024"]
[Site "Chess.com"]
[Date "2024.05.07"]
[Round "1"]
[White "katharinareinecke"]
[Black "Alexei_Gubajdullin"]
[Result "0-1"]
[WhiteElo "1921"]
[BlackElo "2562"]
[TimeControl "180+1"]
[EndTime "14:06:46 PDT"]
[Termination "Alexei_Gubajdullin won on time"]

1. d4 {[%clk 0:02:59.3]} 1... Nf6 {[%clk 0:02:58.3]} 2. c4 {[%clk 0:02:55.6]}
2... g6 {[%clk 0:02:49.8]} 3. Nf3 {[%clk 0:02:55.6]} 3... Bg7 {[%clk 0:02:48.5]}
4. g3 {[%clk 0:02:55.8]} 4... O-O {[%clk 0:02:25.5]} 5. Bg2 {[%clk 0:02:55.7]}
5... d6 {[%clk 0:02:25.5]} 6. O-O {[%clk 0:02:55.6]} 6... Nbd7 {[%clk 0:02:26]}
7. Nc3 {[%clk 0:02:53.7]} 7... e5 {[%clk 0:02:25.4]} 8. e4 {[%clk 0:02:51.6]}
8... c6 {[%clk 0:02:19.6]} 9. h3 {[%clk 0:02:49.9]} 9... a5 {[%clk 0:02:17.2]}
10. b3 {[%clk 0:02:42.6]} 10... Re8 {[%clk 0:02:17.1]} 11. Be3 {[%clk
0:02:37.6]} 11... a4 {[%clk 0:02:16]} 12. b4 {[%clk 0:02:23.4]} 12... Nb6 {[%clk
0:02:14.1]} 13. Qe2 {[%clk 0:02:00.6]} 13... exd4 {[%clk 0:02:11.9]} 14. Nxd4
{[%clk 0:01:58.2]} 14... Nfd7 {[%clk 0:02:08]} 15. Rac1 {[%clk 0:01:48.8]} 15...
Ne5 {[%clk 0:02:07]} 16. c5 {[%clk 0:01:41.2]} 16... dxc5 {[%clk 0:02:05.8]} 17.
bxc5 {[%clk 0:01:41.1]} 17... Nbc4 {[%clk 0:02:06.7]} 18. Rfd1 {[%clk
0:01:30.9]} 18... Nxe3 {[%clk 0:02:04]} 19. Qxe3 {[%clk 0:01:30.5]} 19... Qa5
{[%clk 0:02:01.1]} 20. f4 {[%clk 0:01:20.6]} 20... Nc4 {[%clk 0:01:59.3]} 21.
Qd3 {[%clk 0:01:18.8]} 21... Qxc5 {[%clk 0:01:57.1]} 22. Ne2 {[%clk 0:01:09.7]}
22... b5 {[%clk 0:01:54.7]} 23. e5 {[%clk 0:01:05.1]} 23... Ra6 {[%clk
0:01:54.3]} 24. Kh2 {[%clk 0:00:39.1]} 24... f6 {[%clk 0:01:53.1]} 25. exf6
{[%clk 0:00:33.1]} 25... Bxf6 {[%clk 0:01:52.8]} 26. Nxc6 {[%clk 0:00:17]} 26...
Rxc6 {[%clk 0:01:51.9]} 27. Bxc6 {[%clk 0:00:17.2]} 27... Qxc6 {[%clk
0:01:51.9]} 28. Nc3 {[%clk 0:00:13.7]} 28... Nb2 {[%clk 0:01:38.8]} 29. Qd5+
{[%clk 0:00:11.4]} 29... Qxd5 {[%clk 0:01:38.4]} 30. Rxd5 {[%clk 0:00:11.5]}
30... Bb7 {[%clk 0:01:34.9]} 31. Rxb5 {[%clk 0:00:10.7]} 31... Bf3 {[%clk
0:01:26.6]} 32. Rxb2 {[%clk 0:00:09.1]} 32... Re3 {[%clk 0:01:22.2]} 33. Rb8+
{[%clk 0:00:04.6]} 33... Kg7 {[%clk 0:01:21.1]} 34. Nd1 {[%clk 0:00:04.4]} 34...
Re2+ {[%clk 0:01:20.7]} 35. Kg1 {[%clk 0:00:03.9]} 35... Rg2+ {[%clk 0:01:19.7]}
36. Kf1 {[%clk 0:00:03.8]} 36... Rxg3 {[%clk 0:01:19.8]} 37. Rc7+ {[%clk
0:00:02]} 37... Kh6 {[%clk 0:01:15.7]} 38. Nf2 {[%clk 0:00:02.3]} 38... Bd5
{[%clk 0:01:14.8]} 39. Ng4+ {[%clk 0:00:01.9]} 39... Rxg4 {[%clk 0:01:11.6]} 40.
hxg4 {[%clk 0:00:01.8]} 40... Bb2 {[%clk 0:01:08]} 41. g5+ {[%clk 0:00:01.5]}
41... Kh5 {[%clk 0:01:07.9]} 42. Rxh7+ {[%clk 0:00:02]} 42... Kg4 {[%clk
0:01:08]} 43. Rd8 {[%clk 0:00:01.9]} 43... Bc4+ {[%clk 0:01:07.5]} 0-1

[Event "Late-Titled-Tuesday-Blitz-May-07-2024"]
[Site "Chess.com"]
[Date "2024.05.07"]
[Round "1"]
[White "jcibarra"]
[Black "rynos0411"]
[Result "1-0"]
[WhiteElo "2920"]
[BlackElo "2524"]
[TimeControl "180+1"]
[EndTime "14:06:50 PDT"]
[Termination "jcibarra won by resignation"]

1. e4 {[%clk 0:02:58.4]} 1... c5 {[%clk 0:02:59.5]} 2. Nf3 {[%clk 0:02:56.3]}
2... d6 {[%clk 0:02:59.9]} 3. c3 {[%clk 0:02:55.7]} 3... Nf6 {[%clk 0:02:57.3]}
4. h3 {[%clk 0:02:56.4]} 4... Nc6 {[%clk 0:02:48.6]} 5. Bd3 {[%clk 0:02:56.1]}
5... g6 {[%clk 0:02:43.4]} 6. Bc2 {[%clk 0:02:56.6]} 6... Bg7 {[%clk 0:02:43.9]}
7. d4 {[%clk 0:02:56.7]} 7... cxd4 {[%clk 0:02:43.8]} 8. cxd4 {[%clk 0:02:57.4]}
8... O-O {[%clk 0:02:44]} 9. O-O {[%clk 0:02:58]} 9... d5 {[%clk 0:02:42.8]} 10.
e5 {[%clk 0:02:57.7]} 10... Ne4 {[%clk 0:02:43.4]} 11. Nc3 {[%clk 0:02:57.9]}
11... Nxc3 {[%clk 0:02:43.4]} 12. bxc3 {[%clk 0:02:58.8]} 12... b6 {[%clk
0:02:41.5]} 13. Re1 {[%clk 0:02:57.4]} 13... Ba6 {[%clk 0:02:39.8]} 14. e6
{[%clk 0:02:53.8]} 14... f5 {[%clk 0:02:36.9]} 15. Ng5 {[%clk 0:02:51.3]} 15...
Rc8 {[%clk 0:02:33.9]} 16. h4 {[%clk 0:02:49]} 16... Qd6 {[%clk 0:02:18.2]} 17.
h5 {[%clk 0:02:38]} 17... Na5 {[%clk 0:02:16.5]} 18. hxg6 {[%clk 0:02:31.2]}
18... hxg6 {[%clk 0:02:17.4]} 19. Qf3 {[%clk 0:02:30.6]} 19... Rf6 {[%clk
0:01:29.1]} 20. Qh3 {[%clk 0:02:25.7]} 20... Nc4 {[%clk 0:01:17.8]} 21. a4
{[%clk 0:02:09.5]} 21... Rc6 {[%clk 0:01:06.2]} 22. g3 {[%clk 0:02:08]} 22...
Bc8 {[%clk 0:01:03.9]} 23. Bf4 {[%clk 0:02:03.7]} 23... Qd8 {[%clk 0:01:03.9]}
24. Qh7+ {[%clk 0:01:59.4]} 24... Kf8 {[%clk 0:01:03.8]} 25. Qh4 {[%clk
0:01:58.7]} 25... Kg8 {[%clk 0:00:56.8]} 26. Re2 {[%clk 0:01:57.4]} 26... Nd6
{[%clk 0:00:51.6]} 27. Qh7+ {[%clk 0:01:50.6]} 27... Kf8 {[%clk 0:00:51.6]} 28.
Be5 {[%clk 0:01:51.3]} 28... Ne4 {[%clk 0:00:52]} 29. Bxf6 {[%clk 0:01:45]}
29... exf6 {[%clk 0:00:52.1]} 30. Qxg6 {[%clk 0:01:39]} 30... Qe7 {[%clk
0:00:51.6]} 31. Nh7+ {[%clk 0:00:51.6]} 31... Kg8 {[%clk 0:00:51.1]} 32. f3
{[%clk 0:00:31.5]} 32... Nxc3 {[%clk 0:00:51.1]} 33. Re3 {[%clk 0:00:31.7]}
33... Rxe6 {[%clk 0:00:45.4]} 34. Rxc3 {[%clk 0:00:24.2]} 34... Re1+ {[%clk
0:00:45.1]} 35. Kg2 {[%clk 0:00:12.9]} 35... Bd7 {[%clk 0:00:32.4]} 36. Rxe1
{[%clk 0:00:11.4]} 36... Qxe1 {[%clk 0:00:33.3]} 37. Nxf6+ {[%clk 0:00:11.1]}
37... Kf8 {[%clk 0:00:33.2]} 38. Nxd7+ {[%clk 0:00:11.8]} 38... Kg8 {[%clk
0:00:33.8]} 39. Nf6+ {[%clk 0:00:11.6]} 1-0

[Event "Late-Titled-Tuesday-Blitz-May-07-2024"]
[Site "Chess.com"]
[Date "2024.05.07"]
[Round "1"]
[White "andrew-blr"]
[Black "HipsterChess22"]
[Result "1-0"]
[WhiteElo "2606"]
[BlackElo "2216"]
[TimeControl "180+1"]
[EndTime "14:06:50 PDT"]
[Termination "andrew-blr won on time"]

1. d4 {[%clk 0:02:56.9]} 1... d5 {[%clk 0:02:59.6]} 2. c4 {[%clk 0:02:56.6]}
2... e6 {[%clk 0:02:59.5]} 3. Nc3 {[%clk 0:02:56.8]} 3... c6 {[%clk 0:02:59.6]}
4. e3 {[%clk 0:02:52.6]} 4... Nd7 {[%clk 0:02:59.2]} 5. Nf3 {[%clk 0:02:50.2]}
5... f5 {[%clk 0:02:51.4]} 6. b3 {[%clk 0:02:46.5]} 6... Bd6 {[%clk 0:02:49]} 7.
Be2 {[%clk 0:02:46.2]} 7... Nh6 {[%clk 0:02:47.9]} 8. Bb2 {[%clk 0:02:45.9]}
8... O-O {[%clk 0:02:47.5]} 9. O-O {[%clk 0:02:42.6]} 9... Rf6 {[%clk
0:02:46.2]} 10. cxd5 {[%clk 0:02:22.5]} 10... exd5 {[%clk 0:02:44.2]} 11. Nb1
{[%clk 0:02:21.5]} 11... Qe7 {[%clk 0:02:37.4]} 12. Nbd2 {[%clk 0:02:20.9]}
12... Nf7 {[%clk 0:02:35.5]} 13. Re1 {[%clk 0:02:13.1]} 13... Rh6 {[%clk
0:02:35.1]} 14. Nf1 {[%clk 0:02:12.6]} 14... g5 {[%clk 0:02:29.7]} 15. g3 {[%clk
0:02:09.2]} 15... g4 {[%clk 0:02:03.3]} 16. N3d2 {[%clk 0:02:05.7]} 16... Ng5
{[%clk 0:01:52.2]} 17. Bd3 {[%clk 0:01:51.4]} 17... Nf6 {[%clk 0:01:49.9]} 18.
f4 {[%clk 0:01:51.3]} 18... gxf3 {[%clk 0:01:30]} 19. Nxf3 {[%clk 0:01:50.8]}
19... Nh3+ {[%clk 0:01:19.3]} 20. Kg2 {[%clk 0:01:45.1]} 20... Ng4 {[%clk
0:01:13.8]} 21. Qc2 {[%clk 0:01:34.8]} 21... Qf7 {[%clk 0:00:33.5]} 22. Ne5
{[%clk 0:01:29.2]} 22... Qh5 {[%clk 0:00:24.3]} 23. Nxg4 {[%clk 0:01:17.6]}
23... fxg4 {[%clk 0:00:21.9]} 24. e4 {[%clk 0:01:12.2]} 24... Ng5 {[%clk
0:00:20.3]} 25. e5 {[%clk 0:01:03.3]} 25... Bb4 {[%clk 0:00:12]} 26. Re2 {[%clk
0:00:55.2]} 26... Nf3 {[%clk 0:00:11.7]} 27. Kh1 {[%clk 0:00:40.6]} 27... Be6
{[%clk 0:00:10.3]} 28. Rd1 {[%clk 0:00:39.8]} 28... Rf8 {[%clk 0:00:10]} 29. Bc1
{[%clk 0:00:39.5]} 29... Ne1 {[%clk 0:00:02]} 30. Rexe1 {[%clk 0:00:34.6]} 1-0

[Event "Late-Titled-Tuesday-Blitz-May-07-2024"]
[Site "Chess.com"]
[Date "2024.05.07"]
[Round "1"]
[White "ilya2700"]
[Black "StellarChess"]
[Result "0-1"]
[WhiteElo "2265"]
[BlackElo "2622"]
[TimeControl "180+1"]
[EndTime "14:06:51 PDT"]
[Termination "StellarChess won on time"]

1. d4 {[%clk 0:03:00.9]} 1... Nf6 {[%clk 0:02:52.1]} 2. c4 {[%clk 0:03:00.8]}
2... e6 {[%clk 0:02:50.8]} 3. Nf3 {[%clk 0:03:00.9]} 3... Bb4+ {[%clk 0:02:50]}
4. Bd2 {[%clk 0:03:01.4]} 4... Bxd2+ {[%clk 0:02:50]} 5. Qxd2 {[%clk 0:03:02.3]}
5... b6 {[%clk 0:02:50.3]} 6. Nc3 {[%clk 0:03:01.9]} 6... Bb7 {[%clk 0:02:50.7]}
7. e3 {[%clk 0:02:58.3]} 7... d5 {[%clk 0:02:50.8]} 8. Bd3 {[%clk 0:02:57.4]}
8... O-O {[%clk 0:02:48.4]} 9. O-O {[%clk 0:02:56.6]} 9... dxc4 {[%clk
0:02:45.2]} 10. Bxc4 {[%clk 0:02:55.8]} 10... Bxf3 {[%clk 0:02:45.9]} 11. gxf3
{[%clk 0:02:55.3]} 11... Nbd7 {[%clk 0:02:46.6]} 12. Rfd1 {[%clk 0:02:42.8]}
12... Qe7 {[%clk 0:02:44.5]} 13. Bf1 {[%clk 0:02:40]} 13... a6 {[%clk
0:02:42.8]} 14. Bg2 {[%clk 0:02:20.8]} 14... Rad8 {[%clk 0:02:42.3]} 15. Ne4
{[%clk 0:01:57.8]} 15... e5 {[%clk 0:02:22.4]} 16. Nxf6+ {[%clk 0:01:20]} 16...
Nxf6 {[%clk 0:02:08.5]} 17. Qc3 {[%clk 0:01:17.5]} 17... exd4 {[%clk 0:02:05.6]}
18. Rxd4 {[%clk 0:01:16.2]} 18... c5 {[%clk 0:02:05.3]} 19. Rd3 {[%clk
0:01:12.6]} 19... Nd5 {[%clk 0:01:48.5]} 20. Qd2 {[%clk 0:01:10.7]} 20... Nb4
{[%clk 0:01:46.2]} 21. Rxd8 {[%clk 0:01:05.8]} 21... Rxd8 {[%clk 0:01:47.1]} 22.
Qe2 {[%clk 0:01:06.3]} 22... a5 {[%clk 0:01:20.2]} 23. a3 {[%clk 0:01:04.9]}
23... Nd5 {[%clk 0:01:19.4]} 24. Rd1 {[%clk 0:01:01]} 24... Nf6 {[%clk
0:01:18.7]} 25. f4 {[%clk 0:00:54]} 25... h6 {[%clk 0:01:13.9]} 26. Rxd8+ {[%clk
0:00:36.4]} 26... Qxd8 {[%clk 0:01:13.8]} 27. e4 {[%clk 0:00:36.9]} 27... Qd4
{[%clk 0:01:05.6]} 28. e5 {[%clk 0:00:25.5]} 28... Nd5 {[%clk 0:01:02.7]} 29.
Bxd5 {[%clk 0:00:11.1]} 29... Qxd5 {[%clk 0:01:03.6]} 30. f5 {[%clk 0:00:04]}
30... Kf8 {[%clk 0:00:56.2]} 31. e6 {[%clk 0:00:03.7]} 31... fxe6 {[%clk
0:00:41.7]} 32. fxe6 {[%clk 0:00:03.5]} 32... Ke7 {[%clk 0:00:39.6]} 33. Qg4
{[%clk 0:00:01.6]} 33... g5 {[%clk 0:00:34.1]} 0-1

[Event "Late-Titled-Tuesday-Blitz-May-07-2024"]
[Site "Chess.com"]
[Date "2024.05.07"]
[Round "1"]
[White "ChEsper99"]
[Black "Thjop"]
[Result "1-0"]
[WhiteElo "2307"]
[BlackElo "2614"]
[TimeControl "180+1"]
[EndTime "14:06:53 PDT"]
[Termination "ChEsper99 won by resignation"]

1. Nf3 {[%clk 0:03:00.9]} 1... d5 {[%clk 0:02:58.2]} 2. g3 {[%clk 0:02:59.5]}
2... g6 {[%clk 0:02:57.8]} 3. Bg2 {[%clk 0:02:59.2]} 3... Bg7 {[%clk 0:02:58.1]}
4. d4 {[%clk 0:02:59.6]} 4... c6 {[%clk 0:02:57.5]} 5. O-O {[%clk 0:02:59.4]}
5... Nf6 {[%clk 0:02:58.1]} 6. c4 {[%clk 0:02:59.1]} 6... dxc4 {[%clk
0:02:58.5]} 7. a4 {[%clk 0:02:48.1]} 7... Ne4 {[%clk 0:02:50.2]} 8. Qc2 {[%clk
0:02:22]} 8... Nd6 {[%clk 0:02:50.1]} 9. Nbd2 {[%clk 0:02:20.2]} 9... O-O {[%clk
0:02:46]} 10. Nxc4 {[%clk 0:02:19.8]} 10... Bf5 {[%clk 0:02:44.7]} 11. Qc3
{[%clk 0:02:06.9]} 11... c5 {[%clk 0:02:44.2]} 12. Nxd6 {[%clk 0:01:55.2]} 12...
exd6 {[%clk 0:02:43.3]} 13. Be3 {[%clk 0:01:53.3]} 13... Nc6 {[%clk 0:02:38.6]}
14. Qd2 {[%clk 0:01:50.3]} 14... b6 {[%clk 0:02:32.2]} 15. Rfd1 {[%clk
0:01:49.7]} 15... Qc7 {[%clk 0:02:30.5]} 16. Nh4 {[%clk 0:01:45.9]} 16... Bc8
{[%clk 0:02:03.4]} 17. dxc5 {[%clk 0:01:39.5]} 17... dxc5 {[%clk 0:02:04.3]} 18.
Qd6 {[%clk 0:01:38.8]} 18... Qxd6 {[%clk 0:01:14.6]} 19. Rxd6 {[%clk 0:01:39.7]}
19... Bb7 {[%clk 0:01:13.7]} 20. Bxc6 {[%clk 0:01:37.3]} 20... Bxc6 {[%clk
0:01:13.3]} 21. Rxc6 {[%clk 0:01:37.1]} 21... Bxb2 {[%clk 0:01:13.9]} 22. Rd1
{[%clk 0:01:34.9]} 22... Rfd8 {[%clk 0:01:11.2]} 23. Rcd6 {[%clk 0:01:34.4]}
23... Rxd6 {[%clk 0:01:08.5]} 24. Rxd6 {[%clk 0:01:35.3]} 24... Rc8 {[%clk
0:01:09]} 25. Nf3 {[%clk 0:01:25.7]} 25... c4 {[%clk 0:01:07.5]} 26. Ne1 {[%clk
0:01:24.1]} 26... c3 {[%clk 0:01:03.4]} 27. Nc2 {[%clk 0:01:24.5]} 27... Rc4
{[%clk 0:01:02.2]} 28. Rd4 {[%clk 0:01:25]} 28... Rc7 {[%clk 0:00:56.2]} 29. Bh6
{[%clk 0:01:19.8]} 29... f5 {[%clk 0:00:54.7]} 30. e4 {[%clk 0:01:13.8]} 30...
Kf7 {[%clk 0:00:54.1]} 31. exf5 {[%clk 0:01:13.4]} 31... gxf5 {[%clk 0:00:55]}
32. Kf1 {[%clk 0:01:12.7]} 32... Ke6 {[%clk 0:00:55.1]} 33. Bf4 {[%clk 0:01:13]}
33... Rc8 {[%clk 0:00:53.7]} 34. Ke2 {[%clk 0:01:12.5]} 34... Rc6 {[%clk
0:00:51.6]} 35. Kd3 {[%clk 0:01:12]} 35... a6 {[%clk 0:00:50.9]} 36. Rb4 {[%clk
0:01:11.2]} 36... Kf6 {[%clk 0:00:45.3]} 37. Be3 {[%clk 0:00:59.4]} 37... Rd6+
{[%clk 0:00:42.3]} 38. Bd4+ {[%clk 0:00:59.4]} 38... Kg5 {[%clk 0:00:41.8]} 39.
Rxb6 {[%clk 0:00:58.8]} 39... Rd7 {[%clk 0:00:41.7]} 40. h3 {[%clk 0:00:48.4]}
40... f4 {[%clk 0:00:41.3]} 41. Rxa6 {[%clk 0:00:45.2]} 41... fxg3 {[%clk
0:00:41.6]} 42. fxg3 {[%clk 0:00:45.2]} 42... h5 {[%clk 0:00:42.5]} 43. Ra5+
{[%clk 0:00:44.4]} 43... Kg6 {[%clk 0:00:42.8]} 44. h4 {[%clk 0:00:43.1]} 44...
Rf7 {[%clk 0:00:40.3]} 45. Rg5+ {[%clk 0:00:43.5]} 45... Kh6 {[%clk 0:00:40.4]}
46. Be3 {[%clk 0:00:42.3]} 46... Rd7+ {[%clk 0:00:38.9]} 47. Bd4 {[%clk
0:00:40.4]} 47... Rf7 {[%clk 0:00:38.6]} 48. Be3 {[%clk 0:00:40.7]} 48... Rd7+
{[%clk 0:00:38.7]} 49. Rd5+ {[%clk 0:00:40.4]} 1-0